[Event "1st Uppsala Festival 2022"]
[Site "Uppsala"]
[Date "2022.08.12"]
[Round "7.2"]
[White "Trost, Edvin"]
[Black "Larkin, Vladyslav"]
[Result "1/2-1/2"]
[ECO "E32"]
[WhiteElo "2345"]
[BlackElo "2455"]
[Annotator "TA"]
[PlyCount "69"]
[EventDate "2022.08.09"]
[EventType "tourn"]
[EventCountry "SWE"]
[SourceTitle "playchess.com"]
[Source "ChessBase"]
[SourceQuality "1"]
[TimeControl "5400+30"]

{[%evp 19,69,23,34,32,35,29,31,25,33,31,25,22,27,25,24,22,17,20,38,25,61,57,64,55,64,54,62,61,61,65,62,66,64,59,80,54,50,48,42,2,15,14,20,2,27,2,5,0,33,0,7,0]} 1. d4 {[%emt 0:01:09]} Nf6 {[%emt 0:00:05]} 2. c4 {[%emt 0:00:50]} e6 {[%emt 0:00:06]} 3. Nc3 {[%emt 0:01:00]} Bb4 {[%emt 0:00:06]} 4. Qc2 {[%emt 0:00:09]} d6 {[%emt 0:01:20]} 5. Nf3 {[%emt 0:00:57]} O-O {[%emt 0:00:14]} 6. g3 {[%emt 0:00:33]} b6 {[%emt 0:00:51]} 7. Bg2 {[%emt 0:00:19]} Bb7 {[%emt 0:00:04]} 8. O-O {[%emt 0:00:08]} Bxc3 {[%emt 0:00:17]} 9. Qxc3 {[%emt 0:00:08]} Nbd7 {[%emt 0:00:04]} 10. b3 {[%emt 0:06:50]} Be4 {[%emt 0:00:17]} 11. Rd1 {[%emt 0:03:18] E32: Nimzo-Indian: Classical (4 Qc2): 4...0-0.} Re8 {[%emt 0:02:19]} 12. Bb2 {[%emt 0:03:20]} Qe7 {[%emt 0:07:52]} 13. Bh3 {[%emt 0:12:08][%cal Od4d5] White is slightly better.} Bb7 {[%emt 0:18:21] Inhibits d5.} 14. Nd2 {[%emt 0:04:23]} a5 {[%emt 0:03:14] [#]} 15. Qd3 $146 {[%emt 0:05:46]} ({Predecessor:} 15. Qc2 c5 16. e4 e5 17. d5 Nf8 18. Nf1 Bc8 19. Bxc8 Raxc8 20. Ne3 g6 21. a4 {½-½ (34) Tang,A (2387)-Yang,D (2465) Rockville 2015}) 15... e5 {[%emt 0:11:20]} 16. e4 {[%emt 0:04:03]} exd4 {[%emt 0:12:27]} 17. Qxd4 {[%emt 0:01:32]} Qe5 {[%emt 0:00:05]} 18. f3 {[%emt 0:52:57]} a4 19. Nf1 axb3 20. axb3 Qxd4+ 21. Bxd4 Ne5 22. Kf2 {[%cal Bg1f2,Bf2e2,Be2d3,Bd3c3][%mdl 32]} Rxa1 23. Rxa1 Ra8 24. Rxa8+ Bxa8 25. Ke2 Ned7 26. Ne3 Kf8 27. Kd3 g6 28. Nd5 {[%emt 0:00:00]} Nxd5 29. Bxd7 $14 {[%emt 0:00:00][%mdl 4096] Endgame KBB-KBN} Ke7 {[#] And now ...Nb4+ would win.} 30. Bh3 {[%emt 0:00:00]} Nb4+ 31. Kc3 {[%emt 0:00:00]} Na2+ 32. Kb2 {[%emt 0:00:00]} Nb4 33. Kc3 {[%emt 0:00:00] Inhibits Nd3.} Na2+ 34. Kb2 {[%emt 0:00:00]} Nb4 35. Kc3 {[%emt 0:00:00] Weighted Error Value: White=0.08 (flawless) /Black=0.06 (flawless)} 1/2-1/2

[Event "1st Uppsala Festival 2022"]
[Site "Uppsala"]
[Date "2022.08.12"]
[Round "7.3"]
[White "Lindberg, Bengt"]
[Black "Savitha Shri B"]
[Result "0-1"]
[ECO "B43"]
[WhiteElo "2370"]
[BlackElo "2278"]
[Annotator "TA"]
[PlyCount "80"]
[EventDate "2022.08.09"]
[EventType "tourn"]
[EventCountry "SWE"]
[SourceTitle "playchess.com"]
[Source "ChessBase"]
[SourceQuality "1"]
[TimeControl "5400+30"]

{[%evp 15,80,38,49,29,44,0,5,6,0,8,14,0,0,4,0,0,31,26,25,36,33,33,42,8,13,14,16,-4,-14,-16,-12,-13,-40,-29,-38,-32,0,0,0,-94,-94,-203,-194,-174,-169,-322,-322,-596,-388,-481,-127,-372,-253,-413,-381,-953,-927,-2787,-2243,-29980,-29981,-29988,-29989,-29990,-29985,-29991,-29992]} 1. e4 {[%emt 0:01:04]} c5 {[%emt 0:00:07]} 2. Nf3 {[%emt 0:00:05]} e6 {[%emt 0:00:02]} 3. d4 {[%emt 0:00:06]} cxd4 {[%emt 0:00:04]} 4. Nxd4 {[%emt 0:00:04]} a6 {[%emt 0:00:03]} 5. Nc3 {[%emt 0:00:10]} b5 {[%emt 0:00:04]} 6. Bd3 {[%emt 0:00:08]} Bb7 {[%emt 0:00:04]} 7. O-O {[%emt 0:00:11]} Nc6 {[%emt 0:00:01]} 8. Nxc6 {[%emt 0:03:37]} Bxc6 {[%emt 0:00:05]} 9. Re1 {[%emt 0:03:02] The main line 9.Re1 scores better than 9.Qe2. B43: Sicilian: Kan Variation: 5 Nc3.} Ne7 {[%emt 0:00:07]} 10. a4 {[%emt 0:07:53][%cal Ra4b5]} b4 {[%emt 0:00:06]} 11. Ne2 {[%emt 0:00:13] The position is equal.} Ng6 {[%emt 0:00:04]} 12. Nd4 {[%emt 0:02:03]} Bb7 {[%emt 0:00:05]} 13. Qh5 {[%emt 0:07:44]} Qc7 {[%emt 0:06:56] [#]} 14. Nb3 $146 {[%emt 0:11:16]} ({Predecessor:} 14. e5 Bc5 15. Nb3 Ba7 16. Be3 Bxe3 17. Rxe3 Bxg2 18. Bxg6 fxg6 19. Qg4 Bd5 20. Qxb4 Qxc2 {0-1 (63) Bilych,O (2342)-Subelj,J (2468) Terme Catez 2022}) 14... Bd6 {[%emt 0:13:19]} 15. Na5 {[%emt 0:08:58]} Be5 {[%emt 0:13:42]} 16. Nc4 {[%emt 0:02:30]} O-O {[%emt 0:05:16]} 17. Be3 {[%emt 0:01:22]} d6 {[%emt 0:07:38][%cal Bd7d6,Bd6d5][%mdl 32]} 18. a5 {[%emt 0:12:15]} Nf4 {[%emt 0:03:38]} 19. Qd1 {[%emt 0:01:10]} (19. Qg5 $5 {[%cal Re3f4]} h6 20. Qh4 Nxd3 21. cxd3 $11) 19... Nxd3 {[%emt 0:04:11]} 20. cxd3 {[%emt 0:01:02]} Bxh2+ $1 {[%emt 0:05:49] A strong pair of Bishops.} 21. Kh1 {[%emt 0:03:08] Hoping for Rc1.} d5 {[%emt 0:12:16]} 22. Nb6 {[%emt 0:01:26] Strongly threatening Rc1.} Rad8 {[%emt 0:01:51]} (22... dxe4 23. Rc1 Qb8 24. dxe4 $16) 23. Rc1 {[%emt 0:00:52]} ({But not} 23. g3 Bxg3 $1 {[%mdl 512]} 24. Rc1 Qe5 25. fxg3 Qxg3 $17) 23... Qb8 {[%emt 0:01:02]} 24. g3 {[%emt 0:07:50] [#]} Bxg3 {[%emt 0:01:16]} 25. fxg3 {[%emt 0:00:17]} dxe4 {[%emt 0:01:58]} (25... Qxg3 $5 {[%cal Rd5e4]} 26. Qh5 dxe4 $17) 26. Kh2 {[%emt 0:02:36]} Rxd3 {[%emt 0:02:14]} 27. Qh5 {[%emt 0:01:33] [#]} (27. Qc2 $11) 27... f5 $1 $17 {[%emt 0:01:47][%cal Of5f4] And now ...f4! would win. Dancing on a razor blade.} 28. Nc4 {[%emt 0:03:09] [#]} (28. Rcd1 $17 {was worth a try.}) 28... e5 $1 $19 {[%emt 0:04:37] ...f4 is the strong threat.} 29. Rcd1 {[%emt 0:00:38]} ({Don't play} 29. Bc5 Rf6 30. Be3 f4 31. Qxe5 Qxe5 32. Nxe5 fxe3 $19) 29... Qc7 {[%emt 0:05:13]} 30. Rc1 {[%emt 0:03:06]} (30. Rxd3 exd3 31. b3) 30... Qe7 {[%emt 0:01:19]} ({And not} 30... f4 31. Nxe5 fxg3+ 32. Kg1 Rxe3 33. Rxc7 $11) 31. Nb6 $2 {[%emt 0:03:11]} (31. Kg1) 31... Qd8 {[%emt 0:05:24]} 32. Nc4 {[%emt 0:00:59]} Qd5 $2 {[%emt 0:01:53]} (32... f4 $19 {and Black stays clearly on top.} 33. Rc2 fxe3 34. Nxe3 Rf3) 33. Rc2 $2 {[%emt 0:01:00] This move loses the game for White.} (33. Nb6 $17 Qd8 34. Qh4) 33... b3 {[%emt 0:00:16]} 34. Rcc1 {[%emt 0:00:09]} (34. Nb6 {is the only way for White.} Qxa5 35. Rce2) 34... f4 {[%emt 0:01:14]} 35. Nb6 $2 {[%emt 0:02:36]} (35. Rf1 Rxe3 36. Nxe3 Qd2+ 37. Ng2) 35... Qd8 {[%emt 0:00:50]} 36. Qxe5 {[%emt 0:06:57]} Rxe3 {[%emt 0:01:14][%mdl 64] Remove Defender} 37. Rxe3 {[%emt 0:00:02]} Qd2+ {[%emt 0:00:25] Black mates.} 38. Kh3 {[%emt 0:00:23]} Qxc1 {[%emt 0:00:47]} 39. Rc3 {[%emt 0:00:36]} Qh1+ {[%emt 0:01:00]} 40. Kg4 {[%emt 0:00:02]} e3 {[%emt 0:00:47] Weighted Error Value: White=0.80/Black=0.31} 0-1

[Event "1st Uppsala Festival 2022"]
[Site "Uppsala"]
[Date "2022.08.12"]
[Round "7.4"]
[White "Sriram, Jha"]
[Black "Johansson, Jan"]
[Result "1-0"]
[ECO "D36"]
[WhiteElo "2361"]
[BlackElo "2306"]
[Annotator "TA"]
[PlyCount "47"]
[EventDate "2022.08.09"]
[EventType "tourn"]
[EventCountry "SWE"]
[SourceTitle "playchess.com"]
[Source "ChessBase"]
[SourceQuality "1"]
[TimeControl "5400+30"]

{[%evp 17,47,12,27,24,32,30,27,29,26,23,162,173,167,153,286,292,275,289,272,274,973,976,968,963,935,927,908,581,989,964,923,918]} 1. d4 {[%emt 0:00:13]} Nf6 {[%emt 0:00:29]} 2. c4 {[%emt 0:00:37]} e6 {[%emt 0:00:07]} 3. Nf3 {[%emt 0:00:25]} d5 {[%emt 0:00:24]} 4. Nc3 {[%emt 0:01:22]} c6 {[%emt 0:01:49]} 5. Bg5 {[%emt 0:00:23]} Nbd7 {[%emt 0:00:17]} 6. cxd5 {[%emt 0:01:50]} exd5 {[%emt 0:00:19]} 7. e3 {[%emt 0:00:16]} Be7 {[%emt 0:00:34]} 8. Qc2 {[%emt 0:00:23]} Nf8 {[%emt 0:02:58] 8...Nh5 gains popularity.} 9. Bd3 {[%emt 0:00:29]} Bg4 {[%emt 0:01:01]} 10. Ne5 {[%emt 0:04:24] D36: Queen's Gambit Declined: Exchange Variation: Main line (5 Bg5 c6 6 Qc2).} Bh5 {[%emt 0:04:38]} 11. O-O {[%emt 0:14:09]} Bg6 {[%emt 0:00:58] [#]} 12. f4 $146 {[%emt 0:14:01] f5 is the strong threat. White has an edge.} ({Predecessor:} 12. b4 Ne6 13. Bxf6 Bxf6 14. f4 Bxd3 15. Qxd3 O-O 16. f5 Nc7 17. Ng4 Ne8 18. b5 Nd6 19. bxc6 {½-½ (19) Shariyazdanov,A (2495)-Kharitonov,A (2585) Moscow 1998}) 12... Bxd3 {[%emt 0:00:38]} 13. Qxd3 {[%emt 0:00:08]} N6d7 {[%emt 0:04:29]} (13... Ne6 $11 {and Black is okay.}) 14. Bxe7 $18 {[%emt 0:14:48]} Qxe7 {[%emt 0:00:06] [#]} 15. e4 $1 {[%emt 0:00:04]} dxe4 {[%emt 0:02:29]} (15... f6 $16 {keeps fighting.}) 16. Nxe4 {[%emt 0:01:03] Hoping for Rae1.} f5 {[%emt 0:00:20] [#]} 17. Ng5 {[%emt 0:04:49]} Nxe5 {[%emt 0:07:25]} 18. Qxf5 {[%emt 0:01:12]} (18. dxe5 h6 $16) 18... Nc4 $2 {[%emt 0:00:40]} (18... h6 $2 19. Rae1 g6 20. Qh3 $18 (20. Qxe5 Qxe5 21. Rxe5+ Kd7 $18)) (18... Qf6 19. Qxe5+ (19. fxe5 Qxf5 20. Rxf5 Ng6 $18) 19... Qxe5 20. dxe5 (20. fxe5 Ng6 $18) 20... Nd7) 19. Rfe1 {[%emt 0:01:33] White is clearly winning.} Ne3 {[%emt 0:00:23]} 20. Qh3 {[%emt 0:00:10]} Kd8 {[%emt 0:00:48]} 21. Rxe3 {[%emt 0:00:30]} Qd7 {[%emt 0:01:04]} 22. Qh5 {[%emt 0:05:02]} g6 {[%emt 0:01:20]} 23. Qe2 {[%emt 0:00:07]} h6 {[%emt 0:00:23] [#]} 24. Re1 $1 {[%emt 0:01:17] Black did not feel at home in the position after the opening.  Weighted Error Value: White=0.38/Black=0.40} 1-0

[Event "1st Uppsala Festival 2022"]
[Site "Uppsala"]
[Date "2022.08.12"]
[Round "7.5"]
[White "Stefansson, Vignir Vatnar"]
[Black "Peng, Li Min"]
[Result "1/2-1/2"]
[ECO "B81"]
[WhiteElo "2461"]
[BlackElo "2516"]
[Annotator "TA"]
[PlyCount "38"]
[EventDate "2022.08.09"]
[EventType "tourn"]
[EventCountry "SWE"]
[SourceTitle "playchess.com"]
[Source "ChessBase"]
[SourceQuality "1"]
[TimeControl "5400+30"]

{[%evp 16,38,9,16,24,13,35,29,22,10,14,20,17,12,14,12,20,21,46,0,31,0,39,0,24]} 1. e4 {[%emt 0:00:14]} c5 {[%emt 0:00:23]} 2. Nf3 {[%emt 0:00:43]} e6 {[%emt 0:00:04]} 3. d4 {[%emt 0:00:32]} cxd4 {[%emt 0:00:07]} 4. Nxd4 {[%emt 0:00:05]} Nf6 {[%emt 0:00:08]} 5. Nc3 {[%emt 0:00:06]} d6 {[%emt 0:00:11]} 6. g4 {[%emt 0:01:50]} h6 {[%emt 0:01:30]} 7. h4 {[%emt 0:03:03]} Nc6 {[%emt 0:04:11]} 8. g5 {[%emt 0:01:14]} hxg5 {[%emt 0:00:18]} 9. Bxg5 {[%emt 0:00:06]} Be7 {[%emt 0:02:16] B81: Sicilian Scheveningen: Keres Attack.} 10. Rg1 {[%emt 0:01:40] [#]} d5 $146 {[%emt 0:02:05]} ({Predecessor:} 10... a6 11. Qd2 Qc7 12. O-O-O Bd7 13. f4 O-O-O 14. Be2 g6 15. Rg3 d5 16. exd5 Nxd5 17. Nxd5 exd5 18. Nxc6 Bxc6 {½-½ (49) Ljubicic,F (2471)-Sax,G (2502) Split 2008}) 11. exd5 {[%emt 0:03:06]} Nxd5 {[%emt 0:01:38] White has an edge.} 12. Nxd5 {[%emt 0:01:05]} Qxd5 {[%emt 0:00:07]} 13. Nxc6 {[%emt 0:01:10]} bxc6 {[%emt 0:01:08]} 14. Qe2 {[%emt 0:03:43] Inhibits Qe5.} Rb8 {[%emt 0:01:56]} 15. c3 {[%emt 0:01:12]} Qb5 {[%emt 0:00:16]} 16. Qe3 {[%emt 0:03:09]} Qc5 {[%emt 0:02:34]} 17. Qe2 {[%emt 0:01:45]} Qb5 {[%emt 0:00:05]} 18. Qe3 {[%emt 0:01:16]} Qc5 {[%emt 0:00:05]} 19. Qe2 {[%emt 0:00:46]} Qb5 {[%emt 1:20:58] An interesting draw.  Weighted Error Value: White=0.14 (very precise) /Black=0.08 (flawless)} 1/2-1/2

[Event "1st Uppsala Festival 2022"]
[Site "Uppsala"]
[Date "2022.08.13"]
[Round "8.1"]
[White "Sorensen, Hampus"]
[Black "Trost, Edvin"]
[Result "1-0"]
[ECO "B41"]
[WhiteElo "2376"]
[BlackElo "2345"]
[Annotator "TA"]
[PlyCount "123"]
[EventDate "2022.08.09"]
[EventType "tourn"]
[EventCountry "SWE"]
[SourceTitle "playchess.com"]
[Source "ChessBase"]
[SourceQuality "1"]
[TimeControl "5400+30"]

{[%evp 9,122,8,27,29,34,22,35,33,50,38,42,37,65,68,78,71,68,74,50,70,64,33,30,0,54,47,75,33,111,113,107,47,48,43,49,41,70,68,62,70,53,63,78,0,0,0,25,18,22,14,77,66,56,57,123,95,147,114,117,43,103,18,22,0,47,26,46,0,28,0,0,-33,0,-398,-390,-599,-453,-455,-444,-401,-304,-458,-250,-568,-541,-537,0,0,0,0,0,-16,0,0,33,16,122,132,180,59,59,58,66,84,84,74,80,79,184,192,29984,29985,29985,29986,29999]} 1. e4 {[%emt 0:00:11]} c5 {[%emt 0:01:51]} 2. Nf3 {[%emt 0:00:14]} e6 {[%emt 0:01:06]} 3. d4 {[%emt 0:00:29]} cxd4 {[%emt 0:00:07]} 4. Nxd4 {[%emt 0:00:04]} a6 {[%emt 0:00:04]} 5. a3 {[%emt 0:00:45][%cal Ba2a3,Ba3a4][%mdl 32]} b5 {[%emt 0:02:12]} (5... Nf6 $5 {[%cal Rf6e4]}) 6. a4 {[%emt 0:00:44] B41: Sicilian: Kan Variation: 5 c4.} b4 {[%emt 0:03:25]} 7. Bd3 {[%emt 0:01:04]} Bb7 {[%emt 0:02:54]} 8. O-O {[%emt 0:00:47] [#] White is slightly better.} Nc6 $146 {[%emt 0:03:12]} ({Predecessor:} 8... Ne7 9. Qh5 Nec6 10. Nxc6 Nxc6 11. Nd2 Qa5 12. Qh3 Ne5 13. b3 Be7 14. Bb2 Bf6 {1-0 (37) Hakobyan,A (2612)-Blomqvist,E (2550) Fagernes 2022}) 9. Nxc6 {[%emt 0:03:29]} Bxc6 {[%emt 0:00:07]} 10. Nd2 {[%emt 0:06:06]} Bd6 {[%emt 0:08:19]} 11. Nc4 {[%emt 0:07:57]} Bc7 {[%emt 0:01:07]} 12. e5 {[%emt 0:00:13]} Ne7 {[%emt 0:02:08]} 13. Bg5 {[%emt 0:05:58] Threatens to win with Nd6+.} Qb8 {[%emt 0:02:31]} 14. Bxe7 {[%emt 0:05:55]} Kxe7 {[%emt 0:00:05]} 15. Qe2 {[%emt 0:06:14]} f5 {[%emt 0:07:43]} 16. a5 {[%emt 0:11:42]} h5 {[%emt 0:08:25]} (16... Qa7 $11) 17. Qe3 $14 {[%emt 0:05:38]} h4 {[%emt 0:15:35]} 18. h3 {[%emt 0:00:26]} (18. Rfd1 $5 {[%cal Rd3e2]}) 18... Qb7 {[%emt 0:05:48]} (18... Kf7 $14) 19. Rfd1 {[%emt 0:02:18]} (19. Nd6 $6 Bxd6 20. exd6+ (20. Qg5+ Kf7 $15) 20... Kf6 $11) 19... Rh6 {[%emt 0:02:18]} 20. Qg5+ {[%emt 0:03:43]} (20. Be2 $16) 20... Kf8 {[%emt 0:01:41]} 21. Bf1 $1 {[%emt 0:02:09]} (21. Nd6 Bxd6 22. exd6 Qa7 $11) 21... Qa7 {[%emt 0:03:51]} 22. Qd2 {[%emt 0:07:49]} Rg6 {[%emt 0:03:12]} 23. Qxb4+ {[%emt 0:00:56]} Kg8 {[%emt 0:00:33]} 24. Qd2 {[%emt 0:05:56]} Qb7 {[%emt 0:00:37][%cal Rc6g2]} 25. f4 {[%emt 0:00:11]} Rg3 {[%emt 0:01:38]} 26. Ra3 {[%emt 0:01:55]} ({White should play} 26. Qf2 $16) 26... Rxa3 $11 {[%emt 0:00:17]} 27. bxa3 {[%emt 0:00:12]} Rb8 {[%emt 0:01:06]} 28. Qf2 {[%emt 0:01:19]} Bd8 {[%emt 0:00:49]} 29. Kh2 {[%emt 0:00:46]} Qc7 {[%emt 0:01:27]} (29... Qb5 $11) 30. Nb6 $16 {[%emt 0:03:15]} Qa7 {[%emt 0:00:41]} 31. Rb1 {[%emt 0:01:07]} Rb7 {[%emt 0:03:45]} (31... g5 $14) 32. c4 {[%emt 0:03:36][%cal Bc2c4,Bc4c5][%mdl 32] White is more active.} Rc7 {[%emt 0:00:39]} ({Black should try} 32... Be7) 33. c5 {[%emt 0:01:38]} Be7 {[%emt 0:02:02]} 34. Rc1 {[%emt 0:00:01]} (34. Bd3 $16) 34... Be4 {[%emt 0:02:03]} (34... Bb5 $14) 35. Kh1 {[%emt 0:02:25]} (35. Bc4 $16) 35... Qb7 $11 {[%emt 0:02:21]} 36. Rc3 {[%emt 0:02:18]} Rc6 {[%emt 0:05:08]} (36... g5 37. fxg5 Bxg5 38. Qe2 $14) (36... Qc6 $11 {should be considered.}) 37. Qd4 $14 {[%emt 0:02:42]} Rc7 {[%emt 0:00:52]} 38. Qb4 {[%emt 0:00:48]} (38. a4 $14) 38... Kh7 {[%emt 0:02:16]} 39. Kh2 {[%emt 0:00:44][%cal Oc5c6]} Qc6 {[%emt 0:00:18][%cal Re7c5]} 40. Na4 {[%emt 0:00:46]} Qd5 {[%emt 0:00:28] ...Qd2 is the strong threat.} (40... g5 $5 {[%cal Rg5f4]}) 41. Qc4 $2 {[%emt 0:03:53][%mdl 8192]} (41. Rc4 $11) 41... Qd2 {[%emt 0:00:23]} 42. Qxa6 {[%emt 0:00:44]} (42. Kg1 {keeps fighting.} Bc6 43. Rd3 Qxa5 44. Qc3 Qxc3 45. Nxc3) 42... Qxf4+ {[%emt 0:00:25]} 43. Kh1 {[%emt 0:00:14]} Qxe5 {[%emt 0:00:46]} 44. Qe2 {[%emt 0:00:18]} g6 {[%emt 0:00:36]} 45. Qe3 {[%emt 0:01:32]} (45. Qd2 $142) 45... Ra7 {[%emt 0:00:33]} (45... Rb7 $142 46. Nb6 d5) 46. Nb6 $2 {[%emt 0:00:50]} (46. a6 {was the crucial defense.}) 46... Bf6 $19 {[%emt 0:01:23] This bishop pair is nice.} 47. Rb3 {[%emt 0:00:01]} Rxa5 $2 {[%emt 0:00:40]} (47... Qa1 $19 48. Qe2 Bd4) 48. Nxd7 $11 {[%emt 0:00:28]} Qa1 {[%emt 0:00:28]} 49. Nxf6+ {[%emt 0:00:09]} Qxf6 {[%emt 0:05:05]} 50. Rc3 {[%emt 0:00:40]} Ra8 {[%emt 0:00:00]} 51. c6 {[%emt 0:00:26] Hoping for c7.} Rc8 {[%emt 0:00:00]} 52. c7 {[%emt 0:00:24] And now Ba6 would win.} Qe5 {[%emt 0:00:00]} (52... f4 $1 $11 {remains equal.} 53. Qc5 f3 54. gxf3 Bxf3+ 55. Bg2 Bd5) 53. Qc5 $16 {[%emt 0:00:20]} Qf4 {[%emt 0:00:00]} (53... Bd5 $16 54. Kg1 f4) 54. Ba6 {[%emt 0:01:50]} (54. Kg1 $1 $18) 54... Qd2 $14 {[%emt 0:00:30][%csl Ge4][%cal Rd2g2]} 55. Qe7+ {[%emt 0:00:26]} Kh6 {[%emt 0:00:54][%csl Ge4][%cal Rd2g2]} 56. Qxh4+ {[%emt 0:00:03]} Kg7 {[%emt 0:00:02][%csl Ge4][%cal Rd2g2] [#]} 57. Qe7+ $1 {[%emt 0:00:11]} (57. Qg3 $6 f4 58. Qg5 Qxc3 $11) 57... Kh6 {[%emt 0:02:34][%csl Ge4][%cal Rd2g2] [#]} 58. Rg3 $36 {[%emt 0:01:09][%mdl 2048] Keeping Black busy.} Qc1+ {[%emt 0:00:00]} (58... Qf4 $16 59. Kh2 (59. Bxc8 Qxg3 60. Qf8+ Kh7 $11) (59. Rxg6+ Kxg6 60. Qxe6+ Kg5 $11) 59... Rxc7 60. Qxe6 Rg7) 59. Kh2 $18 {[%emt 0:00:02] Qf6 would kill now. The board is on fire.} Rxc7 $2 {[%emt 0:00:26]} (59... Bxg2 $18 60. Rxg6+ (60. Rxg2 Qf4+ 61. Rg3 Rxc7 $11) (60. Kxg2 Qd2+ 61. Kf3 Qc3+ 62. Kg2 Qb2+ 63. Kf3 Qb3+ 64. Kf4 e5+ 65. Qxe5 Qa4+ 66. Ke3 Qxa6 $18) 60... Kxg6 61. Qxe6+ (61. Bxc8 Qh1+ 62. Kg3 Qxh3+ 63. Kf2 Qf3+ 64. Kg1 Qf1+ 65. Kh2 Qh1+ 66. Kg3 Qh3+ 67. Kf2 Bd5 $11) 61... Kg5 62. Qxc8 (62. Bxc8 $2 {gets mated.} Qh1+ 63. Kg3 f4+ 64. Kf2 Qf1#) 62... Qh1+ 63. Kg3 Bxh3 64. Qd8+ Kg6 65. Qg8+ Kf6 66. Qh8+ Kg6 67. Qxh3 f4+ 68. Kg4 Qg1+ 69. Kxf4 Qc1+ 70. Kg4 Qxc7 71. Qd3+ Kf6) 60. Qf6 {[%emt 0:01:28][%csl Gg3][%cal Rf6g6] White mates.} f4 {[%emt 0:00:32]} 61. Rg4 {[%emt 0:00:01][%cal Rg4h4]} Bf3 {[%emt 0:00:29]} 62. Qxg6# {[%emt 0:00:11] Both players deserved the win here.  Weighted Error Value: White=0.40/Black=0.48} 1-0

[Event "1st Uppsala Festival 2022"]
[Site "Uppsala"]
[Date "2022.08.13"]
[Round "8.2"]
[White "Savitha Shri B"]
[Black "Akesson, Ralf"]
[Result "1/2-1/2"]
[ECO "B18"]
[WhiteElo "2278"]
[BlackElo "2427"]
[Annotator "TA"]
[PlyCount "61"]
[EventDate "2022.08.09"]
[EventType "tourn"]
[EventCountry "SWE"]
[SourceTitle "playchess.com"]
[Source "ChessBase"]
[SourceQuality "1"]
[TimeControl "5400+30"]

{[%evp 15,61,1,7,7,14,18,11,16,20,20,21,-8,0,0,0,0,0,-15,-9,-19,-9,-18,-16,-18,0,0,0,0,0,0,0,0,0,0,0,0,0,0,0,0,0,0,0,0,0,0,0,0]} 1. e4 {[%emt 0:00:28]} c6 {[%emt 0:01:10]} 2. Nc3 {[%emt 0:01:07][%cal Bb1c3,Bc3e4,Be4g3][%mdl 32]} d5 {[%emt 0:00:20]} 3. d4 {[%emt 0:00:11]} dxe4 {[%emt 0:00:08]} 4. Nxe4 {[%emt 0:00:04]} Bf5 {[%emt 0:00:13]} 5. Ng3 {[%emt 0:00:11]} Bg6 {[%emt 0:00:06]} 6. Nh3 {[%emt 0:00:42]} e6 {[%emt 0:07:30]} 7. c3 {[%emt 0:00:12]} Bd6 {[%emt 0:03:31]} 8. Nf4 {[%emt 0:00:51]} Nf6 {[%emt 0:19:37] The position is equal.} 9. h4 {[%emt 0:08:04] B18: Classical Caro-Kann: 4...Bf5 sidelines.} Qc7 {[%emt 0:04:28]} 10. h5 $1 {[%emt 0:02:42]} Bxf4 {[%emt 0:06:37]} 11. Bxf4 {[%emt 0:00:58]} Qxf4 {[%emt 0:00:08]} 12. hxg6 {[%emt 0:01:11]} fxg6 {[%emt 0:01:58]} 13. Qd2 {[%emt 0:14:06]} (13. Bc4 $5 {[%cal Rd1b3]}) 13... Qxd2+ {[%emt 0:02:38]} 14. Kxd2 {[%emt 0:00:04]} Nbd7 {[%emt 0:03:23]} 15. Re1 {[%emt 0:02:13] [#] Against e5} Ke7 $146 {[%emt 0:05:58]} ({Predecessor:} 15... Kf7 16. Bc4 Rae8 17. Bb3 c5 18. Ne4 Nxe4+ 19. Rxe4 Nf6 20. Re5 cxd4 21. cxd4 Re7 22. Rhe1 Rhe8 23. Kd3 h6 24. f4 {½-½ (24) Boleslavsky,I-Petrosian,T Zuerich 1953}) 16. Bc4 {[%emt 0:08:32]} Nd5 {[%emt 0:00:10]} 17. Ne4 {[%emt 0:05:03]} h6 {[%emt 0:00:34] Inhibits Ng5.} 18. g3 {[%emt 0:02:29]} g5 {[%emt 0:02:10]} 19. Re2 {[%emt 0:00:53]} Rae8 {[%emt 0:04:36]} 20. Rhe1 {[%emt 0:04:06]} Rhf8 {[%emt 0:05:16]} 21. Kc1 {[%emt 0:02:26]} b6 {[%emt 0:05:49]} 22. Nd2 {[%emt 0:05:30]} Kd6 {[%emt 0:00:12]} 23. Bd3 {[%emt 0:03:22]} Re7 {[%emt 0:10:08]} 24. a4 {[%emt 0:13:46]} a5 {[%emt 0:02:02]} 25. f3 {[%emt 0:03:36]} Rfe8 {[%emt 0:02:49]} 26. Bg6 {[%emt 0:00:14]} Rd8 {[%emt 0:01:41]} 27. Bh5 {[%emt 0:05:50]} N5f6 {[%emt 0:02:55]} 28. Bg6 {[%emt 0:01:09]} Nd5 {[%emt 0:01:08]} 29. Bh5 {[%emt 0:00:37]} N5f6 {[%emt 0:01:16]} 30. Bg6 {[%emt 0:01:58]} Nd5 {[%emt 0:00:52]} 31. Bh5 {[%emt 0:04:29] An interesting draw.  Weighted Error Value: White=0.02 (flawless) /Black=0.01 (flawless)} 1/2-1/2